fUST/lending_fUST_20250726
["ID","MTS","AMOUNT","RATE_DAILY","PERIOD"]
[375018585,1753504240832,-151.0,0.00019166,2]
[375018587,1753504240842,-151.0,0.00019166,2]
[375018589,1753504240851,-151.0,0.00019166,2]
[375018591,1753504240860,-152.03025138,0.00019166,2]
[375018593,1753504240869,-151.0,0.00019166,2]
[375018595,1753504240879,-151.0,0.00019166,2]
[375018597,1753504240887,-151.0,0.00019166,2]
[375018599,1753504240897,-151.0,0.00019166,2]
[375018601,1753504240906,-25000.0,0.00019166,2]
[375018603,1753504240916,-50000.0,0.0001917,2]
[375018605,1753504240926,-460.0,0.00019178,2]
[375018607,1753504240936,-460.0,0.00019178,2]
[375018609,1753504240946,-460.0,0.00019178,2]
[375018611,1753504240955,-460.0,0.00019178,2]
[375018613,1753504240964,-183.47309064,0.00019178,2]
[375018615,1753504240974,-460.0,0.00019178,2]
[375018617,1753504240984,-461.74978468,0.00019178,2]
[375018619,1753504240993,-462.05508425,0.00019178,2]
[375018621,1753504241002,-460.0,0.00019178,2]
[375018623,1753504241011,-338.38398677,0.00019178,2]
[375018625,1753504241021,-460.0,0.00019178,2]
[375018627,1753504241031,-428.65507372,0.00019178,2]
[375018629,1753504241040,-460.0,0.00019178,2]
[375018631,1753504241050,-460.0,0.00019178,2]
[375018633,1753504241059,-460.0,0.00019178,2]
[375018635,1753504241068,-460.0,0.00019178,2]
[375018637,1753504241078,-468.97558817,0.00019178,2]
[375018639,1753504241087,-460.0,0.00019178,2]
[375018641,1753504241096,-460.0,0.00019178,2]
[375018643,1753504241105,-356.21929665,0.00019178,2]
[375018645,1753504241115,-460.0,0.00019178,2]
[375018647,1753504241124,-460.0,0.00019178,2]
[375018649,1753504241133,-465.84115011,0.00019178,2]
[375018651,1753504241142,-465.23158807,0.00019178,2]
[375018653,1753504241151,-462.82638303,0.00019178,2]
[375018655,1753504241161,-460.0,0.00019178,2]
[375018657,1753504241171,-460.0,0.00019178,2]
[375018659,1753504241180,-216.70108107,0.00019178,2]
[375018661,1753504241189,-460.0,0.00019178,2]
[375018663,1753504241199,-243.80588162,0.00019178,2]
[375018665,1753504241208,-309.20834019,0.00019178,2]
[375018667,1753504241217,-460.0,0.00019178,2]
[375018669,1753504241227,-461.15879371,0.00019178,2]
[375018671,1753504241236,-460.0,0.00019178,2]
[375018673,1753504241245,-463.03501885,0.00019178,2]
[375018675,1753504241254,-460.0,0.00019178,2]
[375018677,1753504241263,-460.0,0.00019178,2]
[375018679,1753504241273,-462.64390624,0.00019178,2]
[375018681,1753504241283,-460.0,0.00019178,2]
[375018683,1753504241294,-208.5813085,0.00019178,2]
[375018685,1753504241303,-460.0,0.00019178,2]
[375018687,1753504241312,-460.0,0.00019178,2]
[375018689,1753504241323,-464.4276212,0.00019178,2]
[375018691,1753504241333,-560.19029414,0.00019178,2]
[375018693,1753504241342,-460.0,0.00019178,2]
[375018695,1753504241352,-463.09470559,0.00019178,2]
[375018697,1753504241362,-465.04448479,0.00019178,2]
[375018699,1753504241371,-460.0,0.00019178,2]
[375018701,1753504241380,-466.4110347,0.00019178,2]
[375018703,1753504241390,-460.0,0.00019178,2]
[375018705,1753504241399,-460.0,0.00019178,2]
[375018707,1753504241408,-469.82383524,0.00019178,2]
[375018709,1753504241418,-460.0,0.00019178,2]
[375018711,1753504241428,-460.0,0.00019178,2]
[375018713,1753504241438,-468.91057399,0.00019178,2]
[375018715,1753504241448,-460.0,0.00019178,2]
[375018717,1753504241459,-571.35313329,0.00019178,2]
[375018719,1753504241468,-460.0,0.00019178,2]
[375018721,1753504241477,-460.0,0.00019178,2]
[375018723,1753504241487,-460.0,0.00019178,2]
[375018725,1753504241496,-460.0,0.00019178,2]
[375018727,1753504241508,-460.0,0.00019178,2]
[375018729,1753504241517,-460.0,0.00019178,2]
[375018731,1753504241527,-460.0,0.00019178,2]
[375018733,1753504241536,-468.76096697,0.00019178,2]
[375018735,1753504241546,-460.0,0.00019178,2]
[375018737,1753504241556,-460.0,0.00019178,2]
[375018739,1753504241566,-460.0,0.00019178,2]
[375018741,1753504241576,-460.0,0.00019178,2]
[375018743,1753504241585,-460.0,0.00019178,2]
[375018745,1753504241596,-460.0,0.00019178,2]
[375018747,1753504241605,-460.0,0.00019178,2]
[375018749,1753504241615,-740.28,0.00019178,2]
[375018751,1753504241624,-460.0,0.00019178,2]
[375018753,1753504241634,-460.0,0.00019178,2]
[375018755,1753504241643,-467.79461125,0.00019178,2]
[375018757,1753504241652,-515.09771588,0.00019178,2]
[375018758,1753504241661,-460.0,0.00019178,2]
[375018759,1753504241670,-460.0,0.00019178,2]
[375018760,1753504241678,-460.0,0.00019178,2]
[375018761,1753504241690,-462.25554424,0.00019178,2]
[375018762,1753504241699,-462.33778623,0.00019178,2]
[375018763,1753504241708,-460.0,0.00019178,2]
[375018764,1753504241717,-460.0,0.00019178,2]
[375018765,1753504241726,-460.0,0.00019178,2]
[375018766,1753504241735,-464.4841895,0.00019178,2]
[375018767,1753504241744,-460.0,0.00019178,2]
[375018768,1753504241753,-460.0,0.00019178,2]
[375018769,1753504241771,-462.85621092,0.00019178,2]
[375018770,1753504241783,-460.0,0.00019178,2]
[375018771,1753504241792,-460.0,0.00019178,2]
[375018772,1753504241801,-460.0,0.00019178,2]
[375018774,1753504241810,-460.0,0.00019178,2]
[375018776,1753504241819,-460.0,0.00019178,2]
[375018778,1753504241829,-460.0,0.00019178,2]
[375018780,1753504241839,-460.0,0.00019178,2]
[375018782,1753504241849,-344.74944067,0.00019178,2]
[375018784,1753504241859,-460.0,0.00019178,2]
[375018786,1753504241868,-460.0,0.00019178,2]
[375018788,1753504241877,-460.0,0.00019178,2]
[375018790,1753504241886,-470.35285914,0.00019178,2]
[375018792,1753504241896,-460.0,0.00019178,2]
[375018794,1753504241905,-671.29,0.00019178,2]
[375018796,1753504241914,-656.28,0.00019178,2]
[375018798,1753504241923,-460.0,0.00019178,2]
[375018800,1753504241932,-460.0,0.00019178,2]
[375018802,1753504241941,-460.0,0.00019178,2]
[375018804,1753504241950,-538.2637227,0.00019178,2]
[375018806,1753504241959,-472.35810222,0.00019178,2]
[375018808,1753504241970,-460.0,0.00019178,2]
[375018810,1753504241980,-460.0,0.00019178,2]
[375018812,1753504241989,-460.0,0.00019178,2]
[375018814,1753504241999,-460.0,0.00019178,2]
[375018816,1753504242008,-460.0,0.00019178,2]
[375018818,1753504242017,-460.0,0.00019178,2]
[375018820,1753504242027,-460.0,0.00019178,2]
[375018822,1753504242036,-460.0,0.00019178,2]
[375018824,1753504242046,-460.0,0.00019178,2]
[375018826,1753504242055,-467.89570033,0.00019178,2]
[375018828,1753504242064,-460.0,0.00019178,2]
[375018830,1753504242073,-460.0,0.00019178,2]
[375018832,1753504242082,-460.0,0.00019178,2]
[375018834,1753504242092,-460.0,0.00019178,2]
[375018836,1753504242102,-460.0,0.00019178,2]
[375018838,1753504242111,-464.29558711,0.00019178,2]
[375018840,1753504242121,-460.0,0.00019178,2]
[375018842,1753504242130,-467.08250855,0.00019178,2]
[375018844,1753504242139,-460.0,0.00019178,2]
[375018846,1753504242148,-460.0,0.00019178,2]
[375018848,1753504242157,-460.0,0.00019178,2]
[375018851,1753504242170,-460.0,0.00019178,2]
[375018853,1753504242179,-460.0,0.00019178,2]
[375018855,1753504242189,-460.0,0.00019178,2]
[375018857,1753504242198,-151.0,0.00019178,2]
[375018859,1753504242208,-460.0,0.00019178,2]
[375018861,1753504242217,-500.0,0.00019178,2]
[375018863,1753504242226,-460.0,0.00019178,2]
[375018865,1753504242235,-460.0,0.00019178,2]
[375018867,1753504242245,-151.0,0.00019178,2]
[375018869,1753504242255,-200.50484116,0.00019178,2]
[375018871,1753504242264,-246.79321346,0.00019178,2]
[375018873,1753504242273,-151.0,0.00019178,2]
[375018875,1753504242282,-151.0,0.00019178,2]
[375018877,1753504242293,-460.0,0.00019178,2]
[375018879,1753504242303,-460.0,0.00019178,2]
[375018881,1753504242312,-460.0,0.00019178,2]
[375018883,1753504242322,-460.0,0.00019178,2]
[375018885,1753504242331,-460.0,0.00019178,2]
[375018887,1753504242340,-460.0,0.00019178,2]
[375018889,1753504242350,-522.0,0.00019178,2]
[375018891,1753504242359,-460.0,0.00019178,2]
[375018893,1753504242369,-460.0,0.00019178,2]
[375018895,1753504242381,-497.13968117,0.00019178,2]
[375018897,1753504242390,-460.0,0.00019178,2]
[375018899,1753504242400,-545.0,0.00019178,2]
[375018901,1753504242410,-460.0,0.00019178,2]
[375018903,1753504242419,-460.0,0.00019178,2]
[375018905,1753504242428,-460.0,0.00019178,2]
[375018907,1753504242438,-460.0,0.00019178,2]
[375018909,1753504242447,-276.84245477,0.00019178,2]
[375018911,1753504242456,-460.0,0.00019178,2]
[375018913,1753504242466,-460.0,0.00019178,2]
[375018915,1753504242475,-464.10937476,0.00019178,2]
[375018917,1753504242485,-460.0,0.00019178,2]
[375018919,1753504242495,-460.0,0.00019178,2]
[375018921,1753504242506,-542.83,0.00019178,2]
[375018923,1753504242520,-316.16200497,0.00019178,2]
[375018925,1753504242529,-460.0,0.00019178,2]
[375018927,1753504242539,-460.0,0.00019178,2]
[375018929,1753504242548,-460.0,0.00019178,2]
[375018931,1753504242559,-460.0,0.00019178,2]
[375018933,1753504242568,-460.0,0.00019178,2]
[375018935,1753504242577,-460.0,0.00019178,2]
[375018937,1753504242588,-460.0,0.00019178,2]
[375018939,1753504242598,-460.0,0.00019178,2]
[375018941,1753504242609,-1498.28,0.00019178,2]
[375018943,1753504242619,-460.0,0.00019178,2]
[375018945,1753504242628,-260.67204656,0.00019178,2]
[375018947,1753504242637,-460.0,0.00019178,2]
[375018949,1753504242646,-460.0,0.00019178,2]
[375018951,1753504242656,-3805.15,0.00019178,2]
[375018953,1753504242665,-460.0,0.00019178,2]
[375018955,1753504242674,-460.0,0.00019178,2]
[375018957,1753504242683,-460.0,0.00019178,2]
[375018959,1753504242692,-460.0,0.00019178,2]
[375018961,1753504242702,-460.0,0.00019178,2]
[375018963,1753504242712,-460.0,0.00019178,2]
[375018965,1753504242721,-460.0,0.00019178,2]
[375018967,1753504242730,-467.94471371,0.00019178,2]
[375018969,1753504242739,-460.0,0.00019178,2]
[375018971,1753504242749,-460.0,0.00019178,2]
[375018973,1753504242758,-460.0,0.00019178,2]
[375018975,1753504242768,-460.0,0.00019178,2]
[375018977,1753504242777,-460.0,0.00019178,2]
[375018979,1753504242786,-460.0,0.00019178,2]
[375018981,1753504242795,-460.0,0.00019178,2]
[375018983,1753504242804,-644.44,0.00019178,2]
[375018994,1753504242813,-460.0,0.00019178,2]
[375018997,1753504242917,-460.0,0.00019178,2]
[375018999,1753504242927,-460.0,0.00019178,2]
[375019000,1753504242937,-3381.21,0.00019178,2]
[375019002,1753504242946,-460.0,0.00019178,2]
[375019005,1753504242956,-1582.02,0.00019178,2]
[375019007,1753504242967,-444.87696889,0.00019178,2]
[375019008,1753504242977,-510.76,0.00019178,2]
[375019010,1753504242986,-460.0,0.00019178,2]
[375019012,1753504242996,-1963.1,0.00019178,2]
[375019014,1753504243005,-337.86506508,0.00019178,2]
[375019016,1753504243015,-460.0,0.00019178,2]
[375019017,1753504243023,-469.57155704,0.00019178,2]
[375019018,1753504243032,-500.0,0.00019178,2]
[375019019,1753504243042,-151.0,0.00019178,2]
[375019020,1753504243052,-460.0,0.00019178,2]
[375019021,1753504243062,-460.0,0.00019178,2]
[375019022,1753504243071,-858.34,0.00019178,2]
[375019023,1753504243081,-2076.71,0.00019178,2]
[375019024,1753504243090,-460.0,0.00019178,2]
[375019025,1753504243099,-460.0,0.00019178,2]
[375019026,1753504243108,-151.0,0.00019178,2]
[375019027,1753504243117,-500.0,0.00019178,2]
[375019028,1753504243126,-460.0,0.00019178,2]
[375019029,1753504243135,-460.0,0.00019178,2]
[375019030,1753504243145,-460.0,0.00019178,2]
[375019031,1753504243155,-460.0,0.00019178,2]
[375019032,1753504243164,-460.0,0.00019178,2]
[375019033,1753504243175,-461.92713244,0.00019178,2]
[375019034,1753504243185,-460.0,0.00019178,2]
[375019035,1753504243194,-460.0,0.00019178,2]
[375019036,1753504243204,-460.0,0.00019178,2]
[375019037,1753504243213,-191.7854166,0.00019178,2]
[375019038,1753504243223,-460.0,0.00019178,2]
[375019039,1753504243232,-460.0,0.00019178,2]
[375019040,1753504243241,-460.0,0.00019178,2]
[375019041,1753504243250,-460.0,0.00019178,2]
[375019042,1753504243260,-468.35385978,0.00019178,2]
[375019043,1753504243269,-2280.02,0.00019178,2]
[375019044,1753504243279,-460.0,0.00019178,2]
[375019045,1753504243288,-5310.2,0.00019178,2]
[375019046,1753504243297,-239.78109907,0.00019178,2]
[375019047,1753504243315,-220.21890093,0.00019178,2]
[375019048,1753504243324,-460.0,0.00019178,2]
[375019050,1753504243333,-547.6,0.00019178,2]
[375019052,1753504243342,-737.0,0.00019178,2]
[375019054,1753504243351,-460.0,0.00019178,2]
[375019056,1753504243360,-460.0,0.00019178,2]
[375019058,1753504243369,-460.0,0.00019178,2]
[375019059,1753504243378,-460.0,0.00019178,2]
[375019060,1753504243388,-460.0,0.00019178,2]
[375019061,1753504243397,-460.0,0.00019178,2]
[375019062,1753504243407,-460.0,0.00019178,2]
[375019063,1753504243416,-460.0,0.00019178,2]
[375019064,1753504243425,-460.0,0.00019178,2]
[375019065,1753504243435,-460.0,0.00019178,2]
[375019066,1753504243444,-460.0,0.00019178,2]
[375019067,1753504243454,-460.0,0.00019178,2]
[375019068,1753504243463,-372.50404329,0.00019178,2]
[375019069,1753504243472,-460.0,0.00019178,2]
[375019070,1753504243482,-460.0,0.00019178,2]
[375019071,1753504243491,-908.48,0.00019178,2]
[375019072,1753504243501,-460.0,0.00019178,2]
[375019073,1753504243519,-460.0,0.00019178,2]
[375019074,1753504243529,-181.93726633,0.00019178,2]
[375019075,1753504243541,-278.06273367,0.00019178,2]
[375019076,1753504243552,-460.0,0.00019178,2]
[375019077,1753504243563,-113.02346646,0.00019178,2]
[375019078,1753504243575,-430.30042787,0.00019178,2]
[375019079,1753504243586,-727.56610567,0.00019178,2]
[375019080,1753504243596,-282.83833789,0.00019178,2]
[375019081,1753504244008,-5000.0,0.00017413,2]
[375019082,1753504244018,-184.03916681,0.00019178,2]
[375019083,1753504244028,-460.0,0.00019178,2]
[375019084,1753504244037,-460.0,0.00019178,2]
[375019085,1753504244047,-460.0,0.00019178,2]
[375019086,1753504244056,-1554.44,0.00019178,2]
[375019087,1753504244065,-460.0,0.00019178,2]
[375019088,1753504244075,-1785.29,0.00019178,2]
[375019089,1753504244084,-460.0,0.00019178,2]
[375019090,1753504244094,-460.0,0.00019178,2]
[375019091,1753504244103,-464.56494203,0.00019178,2]
[375019092,1753504244112,-460.0,0.00019178,2]
[375019093,1753504244122,-460.0,0.00019178,2]
[375019094,1753504244131,-460.0,0.00019178,2]
[375019095,1753504244141,-460.0,0.00019178,2]
[375019096,1753504244150,-357.40426177,0.00019178,2]
[375019097,1753504244159,-1283.75,0.00019178,2]
[375019098,1753504244169,-81.25144421,0.00019178,2]
[375019099,1753504244180,-378.74855579,0.00019178,2]
[375019100,1753504244189,-460.0,0.00019178,2]
[375019101,1753504244199,-460.0,0.00019178,2]
[375019102,1753504244208,-460.0,0.00019178,2]
[375019103,1753504244218,-460.0,0.00019178,2]
[375019104,1753504244227,-460.0,0.00019178,2]
[375019105,1753504244236,-460.0,0.00019178,2]
[375019106,1753504244246,-229.86240728,0.00019178,2]
[375019117,1753504246156,-1200.20759272,0.00019178,2]
[375019118,1753504246166,-1381.06,0.00019178,2]
[375019119,1753504246175,-460.0,0.00019178,2]
[375019120,1753504246185,-460.0,0.00019178,2]
[375019121,1753504246194,-460.0,0.00019178,2]
[375019122,1753504246203,-460.0,0.00019178,2]
[375019123,1753504246213,-460.0,0.00019178,2]
[375019124,1753504246222,-460.0,0.00019178,2]
[375019125,1753504246231,-460.0,0.00019178,2]
[375019126,1753504246240,-460.0,0.00019178,2]
[375019127,1753504246250,-831.27,0.00019178,2]
[375019128,1753504246259,-460.0,0.00019178,2]
[375019129,1753504246269,-460.0,0.00019178,2]
[375019130,1753504246279,-460.0,0.00019178,2]
[375019131,1753504246288,-460.0,0.00019178,2]
[375019132,1753504246298,-633.11,0.00019178,2]
[375019133,1753504246308,-460.0,0.00019178,2]
[375019135,1753504246317,-460.0,0.00019178,2]
[375019137,1753504246326,-460.0,0.00019178,2]
[375019148,1753504246437,-460.0,0.00019178,2]
[375019150,1753504246447,-460.0,0.00019178,2]
[375019152,1753504246456,-460.0,0.00019178,2]
[375019154,1753504246466,-500.0,0.00019178,2]
[375019156,1753504246482,-666.0,0.00019178,2]
[375019157,1753504246491,-171.923123,0.00019178,2]
[375019159,1753504246500,-420.0,0.00019198,2]
[375019161,1753504246512,-429.9056391,0.00019205,2]
[375019163,1753504246522,-429.9056391,0.00019205,2]
[375019165,1753504246531,-429.9056391,0.00019205,2]
[375019167,1753504246540,-428.9829547,0.00019205,2]
[375019169,1753504246551,-423.48867885,0.0001924,2]
[375019171,1753504246560,-22606.24104761,0.000193,2]
[375019173,1753504246572,-23650.808962,0.000193,2]
[375019176,1753504246584,-17987.36614958,0.000193,2]
[375019178,1753504246595,-18964.22786529,0.000193,2]
[375019200,1753504450058,-246.21833825,0.00017238,2]
[375019201,1753504452282,-229.02887391,0.00017238,2]
[375019203,1753504587247,271.659761,0.00013699,2]
[375019204,1753504637583,3264.09340458,0.00017,2]
[375019205,1753504637606,1735.90659542,0.00017,2]
[375019206,1753504693312,173.00408655,0.00016549,2]
[375019207,1753504694474,173.00408655,0.00016549,2]
[375019208,1753504695201,173.00408655,0.00016549,2]
[375019209,1753504695655,173.00408655,0.00016549,2]
[375019215,1753505159725,55.77603307,0.0002615,120]
[375019216,1753505166474,5654.4331691,0.00016985,2]
[375019217,1753505218327,11917.64388928,0.00016977,2]
[375019218,1753505218353,12982.35611072,0.00016977,2]
[375019219,1753505219000,5000.0,0.00017,2]
[375019220,1753505235314,2017.64388928,0.00017,2]
[375019221,1753505235338,2982.35611072,0.00017,2]
[375019222,1753505239831,161.0,0.00017,2]
[375019223,1753505250549,5000.0,0.00017,2]
[375019224,1753505267058,5000.0,0.00017,2]
[375019225,1753505282541,5000.0,0.00017,2]
[375019226,1753505298874,1856.64388928,0.00017,2]
[375019227,1753505298899,3143.35611072,0.00017,2]
[375019228,1753505315155,5000.0,0.00017,2]
[375019231,1753505324410,283.0,0.00026088,120]
[375019232,1753505324432,225.66,0.00026088,120]
[375019233,1753505330726,5000.0,0.00017,2]
[375019234,1753505346126,5000.0,0.00017,2]
[375019235,1753505364286,1856.64388928,0.00017,2]
[375019236,1753505364312,3143.35611072,0.00017,2]
[375019237,1753505370122,-257.87947627,0.00017227,2]
[375019238,1753505379895,5000.0,0.00017,2]
[375019240,1753505394774,57.34,0.00026088,120]
[375019241,1753505395766,5000.0,0.00017,2]
[375019242,1753505412024,5000.0,0.00017,2]
[375019243,1753505428303,1856.64388928,0.00017,2]
[375019244,1753505428325,3143.35611072,0.00017,2]
[375019247,1753505432488,-307.31462325,0.00017213,2]
[375019248,1753505432498,-3362.45973793,0.00017227,2]
[375019249,1753505432506,-316.40138716,0.00017477,2]
[375019250,1753505432518,-68.36920698,0.00017477,2]
[375019251,1753505432528,-794.48213558,0.00017479,2]
[375019252,1753505432537,-229.796718,0.00017853,2]
[375019253,1753505432546,-300.0,0.00018016,2]
[375019254,1753505432555,-300.0,0.00018016,2]
[375019255,1753505432564,-252.0,0.00018016,2]
[375019256,1753505432573,-1200.0,0.00018016,2]
[375019257,1753505432582,-36002.94911112,0.00018017,2]
[375019258,1753505432591,-1200.0,0.00018017,2]
[375019259,1753505432601,-221.07672301,0.00018017,2]
[375019261,1753505432610,-500.0,0.00018017,2]
[375019262,1753505432619,-500.0,0.00018017,2]
[375019263,1753505432627,-334.99042104,0.00018017,2]
[375019264,1753505432637,-500.0,0.00018017,2]
[375019266,1753505432645,-500.0,0.00018017,2]
[375019268,1753505432654,-429.96791346,0.00018017,2]
[375019270,1753505432663,-500.0,0.00018017,2]
[375019272,1753505432672,-500.0,0.00018017,2]
[375019274,1753505432681,-500.0,0.00018017,2]
[375019276,1753505432690,-500.0,0.00018017,2]
[375019277,1753505432699,-500.0,0.00018017,2]
[375019278,1753505432708,-500.0,0.00018017,2]
[375019279,1753505432717,-500.0,0.00018017,2]
[375019280,1753505432726,-337.21532321,0.00018017,2]
[375019281,1753505432735,-500.0,0.00018017,2]
[375019282,1753505432744,-500.0,0.00018017,2]
[375019284,1753505432753,-500.0,0.00018017,2]
[375019294,1753505432856,-500.0,0.00018017,2]
[375019296,1753505432866,-500.0,0.00018017,2]
[375019298,1753505432877,-500.0,0.00018017,2]
[375019300,1753505432887,-500.0,0.00018017,2]
[375019302,1753505432896,-500.0,0.00018017,2]
[375019303,1753505432906,-500.0,0.00018017,2]
[375019304,1753505432915,-500.0,0.00018017,2]
[375019305,1753505432924,-500.0,0.00018017,2]
[375019307,1753505432934,-500.0,0.00018017,2]
[375019309,1753505432943,-500.0,0.00018017,2]
[375019311,1753505432953,-500.0,0.00018017,2]
[375019313,1753505432963,-500.0,0.00018017,2]
[375019315,1753505432973,-500.0,0.00018017,2]
[375019316,1753505432982,-500.0,0.00018017,2]
[375019317,1753505432991,-314.81831471,0.00018017,2]
[375019319,1753505433001,-500.0,0.00018017,2]
[375019321,1753505433010,-500.0,0.00018017,2]
[375019323,1753505433020,-500.0,0.00018017,2]
[375019325,1753505433030,-500.0,0.00018017,2]
[375019327,1753505433043,-500.0,0.00018017,2]
[375019329,1753505433052,-500.0,0.00018017,2]
[375019331,1753505433062,-255.67286318,0.00018017,2]
[375019333,1753505433072,-33394.6063221,0.0001802,2]
[375019335,1753505433083,-500.0,0.0001802,2]
[375019337,1753505433092,-464.23413981,0.00018219,2]
[375019339,1753505433102,-500.0,0.00018294,2]
[375019341,1753505433112,-202.50985159,0.00018305,2]
[375019343,1753505433122,-162.1045619,0.00018521,2]
[375019344,1753505433131,-583.9988951,0.00018521,2]
[375019345,1753505433141,-180.6298497,0.00018521,2]
[375019346,1753505433151,-154.8521662,0.00018521,2]
[375019347,1753505433161,-153.0,0.00018521,2]
[375019349,1753505433170,-577.8715194,0.00018521,2]
[375019351,1753505433180,-383.7,0.00018567,2]
[375019352,1753505433190,-500.0,0.00018568,2]
[375019353,1753505433200,-153.0,0.000186,2]
[375019354,1753505433209,-178.3347596,0.000186,2]
[375019355,1753505433219,-577.8715194,0.000186,2]
[375019356,1753505433229,-160.0126475,0.000186,2]
[375019357,1753505433239,-178.3347596,0.000186,2]
[375019358,1753505433248,-160.0126474,0.000186,2]
[375019359,1753505433258,-153.0,0.000186,2]
[375019360,1753505433268,-577.8715194,0.000186,2]
[375019361,1753505433278,-153.0,0.000186,2]
[375019362,1753505433288,-1155.7430388,0.000186,2]
[375019363,1753505433298,-192.25184438,0.00018819,2]
[375019364,1753505433308,-500.0,0.00018842,2]
[375019365,1753505433317,-215.0738,0.00018846,2]
[375019366,1753505433328,-188.76699002,0.000189,2]
[375019367,1753505433337,-2827.27816637,0.000189,2]
[375019368,1753505433348,-545.499869,0.00018913,2]
[375019369,1753505433357,-1616.78882778,0.00018978,2]
[375019370,1753505433367,-160.99999999,0.00019,2]
[375019371,1753505433377,-179.87408814,0.00019024,2]
[375019372,1753505433386,-2827.27816612,0.00019038,2]
[375019373,1753505433396,-151.0,0.00019059,2]
[375019374,1753505433406,-151.0,0.00019059,2]
[375019375,1753505433416,-151.0,0.00019059,2]
[375019376,1753505433426,-151.0,0.00019059,2]
[375019377,1753505433437,-151.0,0.00019059,2]
[375019378,1753505433446,-151.0,0.00019059,2]
[375019379,1753505433457,-151.0,0.00019059,2]
[375019380,1753505433466,-151.0,0.00019059,2]
[375019381,1753505433476,-151.0,0.00019059,2]
[375019382,1753505433485,-177.88195492,0.00019059,2]
[375019383,1753505433495,-82574.28907047,0.0001907,2]
[375019384,1753505433505,-1616.78882777,0.00019072,2]
[375019385,1753505433515,-11964.39728079,0.00019078,2]
[375019386,1753505433525,-500.0,0.00019116,2]
[375019387,1753505433535,-1616.78882777,0.00019165,2]
[375019388,1753505433545,-451.28443905,0.00019173,2]
[375019389,1753505433554,-500.0,0.00019173,2]
[375019390,1753505433564,-500.0,0.00019173,2]
[375019391,1753505433573,-500.0,0.00019173,2]
[375019392,1753505433583,-501.85948839,0.00019173,2]
[375019393,1753505433593,-500.0,0.00019173,2]
[375019394,1753505433603,-2827.27816612,0.00019176,2]
[375019395,1753505433612,-6358.34920599,0.00019178,2]
[375019396,1753505433621,-460.0,0.00019178,2]
[375019397,1753505433631,-461.37379332,0.00019178,2]
[375019398,1753505433641,-460.0,0.00019178,2]
[375019399,1753505433652,-460.0,0.00019178,2]
[375019400,1753505433662,-460.0,0.00019178,2]
[375019401,1753505433672,-460.0,0.00019178,2]
[375019402,1753505433681,-460.0,0.00019178,2]
[375019403,1753505433691,-470.91586141,0.00019178,2]
[375019404,1753505433700,-564.77642996,0.00019178,2]
[375019405,1753505433710,-460.0,0.00019178,2]
[375019406,1753505433720,-460.0,0.00019178,2]
[375019407,1753505433730,-460.0,0.00019178,2]
[375019408,1753505433740,-460.0,0.00019178,2]
[375019409,1753505433750,-460.82068726,0.00019178,2]
[375019410,1753505433759,-460.89099059,0.00019178,2]
[375019411,1753505433769,-460.0,0.00019178,2]
[375019412,1753505433778,-461.89340034,0.00019178,2]